[Event "Olomouc Chess Summer-IM 2022"]
[Site "Olomouc"]
[Date "2022.08.14"]
[Round "3.4"]
[White "Pap, Gyula"]
[Black "Baum, Jonasz"]
[Result "1/2-1/2"]
[ECO "B51"]
[WhiteElo "2481"]
[BlackElo "2410"]
[Annotator "TA"]
[PlyCount "24"]
[EventDate "2022.08.10"]
[EventCountry "CZE"]
[SourceTitle "playchess.com"]
[Source "ChessBase"]
[SourceQuality "1"]
[TimeControl "40/5400+30:1800+30"]

{[%evp 9,24,2,9,9,10,8,21,19,16,-28,-30,-41,-27,-45,-47,-39,-50]} 1. e4 {[%emt 0:00:03]} c5 {[%emt 0:00:09]} 2. Nf3 {[%emt 0:00:08]} d6 {[%emt 0:00:05]} 3. Bb5+ {[%emt 0:07:36]} Nd7 {[%emt 0:00:11]} 4. d4 {[%emt 0:06:17]} cxd4 {[%emt 0:00:06]} 5. Qxd4 {[%emt 0:01:00]} a6 {[%emt 0:00:08]} 6. Be2 {[%emt 0:05:38] B51: Sicilian: Moscow Variation (3 Bb5+) without 3...Bd7.} e5 {[%emt 0:00:16]} 7. Qe3 {[%emt 0:01:37]} Ngf6 {[%emt 0:01:16]} 8. c4 {[%emt 0:02:19] Inhibits b5. The position is equal.} d5 {[%emt 0:00:55]} 9. cxd5 {[%emt 0:07:55]} Bc5 {[%emt 0:00:06][%mdl 64] [#] Deflection} 10. Qb3 {[%emt 0:00:41]} ({Don't take} 10. Qd3 $6 Qb6 $14) 10... Nxe4 {[%emt 0:01:34] [#]} 11. Be3 $146 {[%emt 0:00:11]} ({Predecessor:} 11. O-O Qb6 12. Qxb6 Bxb6 13. Nbd2 Nd6 14. Nc4 Nxc4 15. Bxc4 f6 16. Nd2 Bd4 17. Ne4 {0-1 (49) Gavrilescu,D (2436)-Kotronias,V (2509) Budapest 2018}) 11... O-O {[%emt 0:10:46]} 12. O-O {[%emt 0:01:20]} Bxe3 {[%emt 0:11:13] White did not feel at home in the position after the opening.  Weighted Error Value: White=0.05 (flawless) /Black=0.02 (flawless)} 1/2-1/2

[Event "Olomouc Chess Summer-IM 2022"]
[Site "Olomouc"]
[Date "2022.08.14"]
[Round "3.6"]
[White "Stinka, Jakub"]
[Black "Jurek, Josef"]
[Result "1/2-1/2"]
[ECO "E12"]
[WhiteElo "2335"]
[BlackElo "2200"]
[Annotator "TA"]
[PlyCount "72"]
[EventDate "2022.08.10"]
[EventCountry "CZE"]
[SourceTitle "playchess.com"]
[Source "ChessBase"]
[SourceQuality "1"]
[TimeControl "40/5400+30:1800+30"]

{[%evp 21,72,44,29,16,27,17,61,48,65,57,87,77,78,85,98,108,114,114,154,147,157,154,212,205,225,216,235,213,231,197,197,200,248,115,106,102,130,91,175,164,189,189,159,176,226,159,196,135,140,0,15,0,252]} 1. d4 {[%emt 0:00:08]} Nf6 {[%emt 0:00:14]} 2. Nf3 {[%emt 0:00:07]} e6 {[%emt 0:00:26]} 3. c4 {[%emt 0:00:08]} b6 {[%emt 0:00:29]} 4. a3 {[%emt 0:00:10]} Ba6 {[%emt 0:00:38]} 5. Qc2 {[%emt 0:00:08]} c5 {[%emt 0:00:57]} 6. d5 {[%emt 0:00:24]} exd5 {[%emt 0:00:47]} 7. cxd5 {[%emt 0:00:05]} g6 {[%emt 0:00:44]} 8. Nc3 {[%emt 0:00:50]} Bg7 {[%emt 0:01:32]} 9. g3 {[%emt 0:00:08]} O-O {[%emt 0:01:50]} 10. Bg2 {[%emt 0:00:16]} d6 {[%emt 0:00:54]} 11. O-O {[%emt 0:00:08]} Nbd7 {[%emt 0:02:40]} 12. Re1 {[%emt 0:01:58] E12: Queen's Indian: Unusual White 4th moves, 4 a3, 4 Nc3 Bb7 5 a3 and 4 Nc3 Bb7 .} b5 {[%emt 0:03:04]} 13. h3 {[%emt 0:04:11]} Qb6 {[%emt 0:02:51]} 14. e4 {[%emt 0:02:21] White is slightly better.} Rfe8 {[%emt 0:02:04]} 15. Be3 {[%emt 0:02:53]} Bb7 {[%emt 0:04:54]} 16. Nd2 $1 {[%emt 0:11:07] White is more active.} a6 {[%emt 0:03:55]} 17. a4 $1 {[%emt 0:07:19][%cal Ba3a4,Ba4a5][%mdl 32]} b4 {[%emt 0:06:18] [#]} 18. a5 $146 {[%emt 0:11:21]} ({Predecessor:} 18. Nc4 Qc7 19. Nb1 Nb6 20. Nxb6 Qxb6 21. Nd2 Nd7 22. Nc4 Qc7 23. a5 Ne5 24. Nb6 {0-1 (57) Riazantsev,A (2510)-Aseev,K (2577) Elista 2001}) 18... Qc7 {[%emt 0:08:30]} 19. Ncb1 {[%emt 0:01:50][%cal Bc3b1,Bb1d2,Bd2b3][%mdl 32]} Ne5 {[%emt 0:06:18]} 20. f4 {[%emt 0:04:17]} Ned7 {[%emt 0:05:21][%cal Of6e4]} 21. Nc4 {[%emt 0:02:48]} Nh5 {[%emt 0:06:48]} (21... Rad8 $16 22. Nbd2 h6) 22. g4 $18 {[%emt 0:05:35]} Nhf6 {[%emt 0:00:26]} 23. Nbd2 {[%emt 0:01:13]} h6 {[%emt 0:01:05]} 24. Rad1 {[%emt 0:02:59]} Rad8 {[%emt 0:02:56]} 25. Nb3 {[%emt 0:06:47]} Nh7 {[%emt 0:01:54]} 26. Bf2 {[%emt 0:08:28]} g5 {[%emt 0:05:14]} 27. Bg3 {[%emt 0:01:59]} (27. e5 $1 $18 dxe5 28. fxe5) 27... gxf4 $16 {[%emt 0:02:29]} 28. Bxf4 {[%emt 0:00:06]} Ne5 {[%emt 0:02:50]} 29. Nbd2 {[%emt 0:05:16]} Nf8 {[%emt 0:02:39]} (29... f6 $16) 30. Nxe5 $18 {[%emt 0:05:13]} Bxe5 {[%emt 0:04:10]} 31. Bxh6 {[%emt 0:01:07]} Bd4+ {[%emt 0:05:00]} 32. Kh1 {[%emt 0:00:16]} Ng6 {[%emt 0:01:15]} (32... Qe7 $142 33. Rf1 Ng6) 33. Nc4 {[%emt 0:06:11] Strongly threatening Rf1.} Qe7 {[%emt 0:03:40] [#]} 34. Qd2 {[%emt 0:02:54]} (34. Rxd4 $1 $18 {[%mdl 512]} cxd4 35. Qd2) 34... Bc8 $16 {[%emt 0:01:49][%cal Oc8g4]} 35. Rf1 {[%emt 0:01:41]} (35. Be3 $16) 35... Bxg4 $1 $11 {[%emt 0:02:08]} 36. Rde1 {[%emt 0:02:10] aiming for e5.} ({Wrong is} 36. Nxd6 $2 Rxd6 37. Bg5 f6 $19) 36... Bd7 $2 {[%emt 0:02:40][%mdl 40960] Weighted Error Value: White=0.20 (precise) /Black=0.18 (very precise) . An unexpected result.} (36... Qh4 $11) 1/2-1/2

[Event "Olomouc Chess Summer-IM 2022"]
[Site "Olomouc"]
[Date "2022.08.14"]
[Round "3.7"]
[White "Kukelko, Alexey"]
[Black "Poschadel, Andreas Gregor"]
[Result "1-0"]
[ECO "B10"]
[WhiteElo "2260"]
[BlackElo "2101"]
[Annotator "TA"]
[PlyCount "63"]
[EventDate "2022.08.10"]
[EventCountry "CZE"]
[SourceTitle "playchess.com"]
[Source "ChessBase"]
[SourceQuality "1"]
[TimeControl "40/5400+30:1800+30"]

{[%evp 13,63,25,72,55,112,76,77,71,161,166,155,121,212,234,447,337,347,312,325,321,318,234,532,497,543,542,547,518,450,311,673,664,1032,993,1088,1060,2514,1554,1461,1465,29987,29990,29990,29989,29992,29988,29990,29980,29975,29976,5402,5397]} 1. e4 {[%emt 0:12:36]} c6 {[%emt 0:00:05]} 2. c4 {[%emt 0:04:55]} d5 {[%emt 0:00:13]} 3. exd5 {[%emt 0:00:18]} cxd5 {[%emt 0:00:08]} 4. cxd5 {[%emt 0:00:40]} Nf6 {[%emt 0:00:10]} 5. Bb5+ {[%emt 0:01:02]} Bd7 {[%emt 0:04:54]} 6. Bc4 {[%emt 0:03:30]} b5 {[%emt 0:01:47]} 7. Bb3 {[%emt 0:00:16]} Bg4 {[%emt 0:01:43]} (7... a5 $11) 8. Nf3 {[%emt 0:05:05] h3 is the strong threat. B10: Caro-Kann: 2 d3 and 2 c4.} Nbd7 {[%emt 0:10:39]} (8... a5 $14) 9. d4 {[%emt 0:02:32]} Nb6 {[%emt 0:02:49]} 10. Qd3 {[%emt 0:00:26] [#] And now Ne5 would win. White is better.} a6 $146 {[%emt 0:03:54]} (10... Bxf3 $16 {is a better defense.} 11. Qxf3 (11. Qxb5+ Qd7 $14) 11... Nfxd5) ({Predecessor:} 10... Bxf3 11. Qxf3 Nbxd5 12. Nc3 Nxc3 13. Qc6+ Nd7 14. bxc3 Qc8 15. Qf3 e6 16. O-O Be7 {1-0 (23) Grachev,B (2675)-Kljucharev,S (2375) Olginka 2011}) 11. Ne5 $18 {[%emt 0:05:37]} Nbxd5 {[%emt 0:15:39]} 12. a4 {[%emt 0:10:12][%cal Ba2a4,Ba4a5][%mdl 32]} b4 {[%emt 0:07:05]} (12... e6 $16 {was called for.}) 13. a5 {[%emt 0:02:55]} Qd6 $2 {[%emt 0:15:51]} (13... Bd7 {was necessary.} 14. Nxd7 Kxd7) 14. Bg5 {[%emt 0:11:50]} Bd7 {[%emt 0:20:39]} 15. Nxd7 {[%emt 0:05:02]} Nxd7 {[%emt 0:04:34]} 16. Nd2 {[%emt 0:00:12][%cal Bb1d2,Bd2c4,Bc4e3][%mdl 32] Strongly threatening Ne4.} e6 {[%emt 0:03:12]} 17. O-O {[%emt 0:06:41] Black must now prevent Rfe1.} N5f6 $2 {[%emt 0:03:13]} (17... h6) 18. Ba4 {[%emt 0:02:46]} Qd5 {[%emt 0:02:02]} 19. Bxf6 {[%emt 0:01:23]} gxf6 {[%emt 0:00:02]} 20. Nc4 {[%emt 0:00:54] aiming for Nb6.} Bc5 {[%emt 0:00:30]} 21. Ne3 {[%emt 0:04:24]} Qd6 {[%emt 0:00:46]} (21... Qxd4 22. Rfd1 Qxd3 23. Rxd3 O-O) 22. Qe4 {[%emt 0:00:23]} Rc8 {[%emt 0:01:03]} 23. dxc5 {[%emt 0:00:11]} Qxc5 {[%emt 0:00:29]} 24. Rfd1 {[%emt 0:00:18]} Rd8 {[%emt 0:00:19]} 25. Bxd7+ {[%emt 0:00:31]} Kf8 {[#]} 26. Bxe6 $1 {[%emt 0:00:57]} Rxd1+ {[%emt 0:00:58]} (26... Re8 27. Qf4) 27. Rxd1 {[%emt 0:00:01]} fxe6 {[%emt 0:00:08]} 28. Rd8+ {[%emt 0:00:28]} Kg7 {[%emt 0:00:14]} 29. Qg4+ {[%emt 0:00:04]} Qg5 {[%emt 0:00:11]} 30. Qxg5+ {[%emt 0:00:11]} fxg5 {[%emt 0:00:02]} 31. Rxh8 {[%emt 0:00:04]} Kxh8 {[%emt 0:00:08]} 32. Nc2 {[%emt 0:00:02] Weighted Error Value: White=0.27 (precise) /Black=1.02} 1-0

[Event "Olomouc Chess Summer-IM 2022"]
[Site "Olomouc"]
[Date "2022.08.14"]
[Round "3.8"]
[White "Jasny, Stanislav"]
[Black "Lalic, Bogdan"]
[Result "1/2-1/2"]
[ECO "E20"]
[WhiteElo "2261"]
[BlackElo "2412"]
[Annotator "TA"]
[PlyCount "34"]
[EventDate "2022.08.10"]
[EventCountry "CZE"]
[SourceTitle "playchess.com"]
[Source "ChessBase"]
[SourceQuality "1"]
[TimeControl "40/5400+30:1800+30"]

{[%evp 16,17,0,-18]} 1. d4 {[%emt 0:00:25]} Nf6 {[%emt 0:01:06]} 2. c4 {[%emt 0:00:10]} e6 {[%emt 0:00:07]} 3. Nc3 {[%emt 0:00:37]} Bb4 {[%emt 0:00:11]} 4. Bd2 {[%emt 0:00:12]} O-O {[%emt 0:02:45]} 5. Nf3 {[%emt 0:00:21]} b6 {[%emt 0:00:34]} 6. e3 {[%emt 0:02:03]} Bb7 {[%emt 0:00:14]} 7. Bd3 {[%emt 0:00:14]} d5 {[%emt 0:00:14]} 8. cxd5 {[%emt 0:00:34] 8.cxd5 is better than 8.0-0.} exd5 {[%emt 0:00:09]} 9. O-O {[%emt 0:01:26] [#]} {Predecessor:} Be7 $146 {E52: Nimzo-Indian: Rubinstein: 4...0-0 5 Nf3 d5 6 Bd3 b6.} 10. Ne5 c5 11. f4 Nc6 12. Ne2 Ne4 13. Bxe4 dxe4 14. Nxc6 Bxc6 15. Bc3 Bb5 16. Rf2 Bd3 17. dxc5 bxc5 {½-½ (32) So,W (2772)-Le,Q (2709) chess24.com INT 2021} 1/2-1/2

[Event "Olomouc Chess Summer-IM 2022"]
[Site "Olomouc"]
[Date "2022.08.14"]
[Round "3.10"]
[White "Nytra, Ondrej"]
[Black "Kusa, Jakub"]
[Result "1-0"]
[ECO "C54"]
[WhiteElo "2214"]
[BlackElo "2353"]
[Annotator "TA"]
[PlyCount "59"]
[EventDate "2022.08.10"]
[EventCountry "CZE"]
[SourceTitle "playchess.com"]
[Source "ChessBase"]
[SourceQuality "1"]
[TimeControl "40/5400+30:1800+30"]

{[%evp 12,59,36,18,33,0,0,0,0,0,27,0,0,0,-6,0,-35,-19,0,-12,-18,-14,0,-4,0,0,0,-21,-15,-32,-23,-116,-67,-66,-49,-46,-44,-40,-23,-13,-20,-15,598,585,591,571,572,564,563,521]} 1. e4 {[%emt 0:00:34]} e5 {[%emt 0:00:07]} 2. Nf3 {[%emt 0:00:04]} Nc6 {[%emt 0:00:05]} 3. Bc4 {[%emt 0:00:03]} Bc5 {[%emt 0:00:13]} 4. c3 {[%emt 0:00:06]} Nf6 {[%emt 0:00:12]} 5. d3 {[%emt 0:00:02]} d6 {[%emt 0:00:45]} 6. O-O {[%emt 0:00:12]} Bb6 {[%emt 0:00:42]} 7. a4 {[%emt 0:00:15]} a5 {[%emt 0:01:33] C54: Giuoco Piano: 4 c3 Nf6, main lines with 5 d4 and 5 d3.} 8. Be3 {[%emt 0:00:40]} Bxe3 {[%emt 0:01:25]} 9. fxe3 {[%emt 0:00:05]} O-O {[%emt 0:01:15] The position is equal.} 10. Nbd2 {[%emt 0:00:18]} Qe7 {[%emt 0:03:08] [#]} 11. Qe1 $146 {[%emt 0:03:51]} ({Predecessor:} 11. Qb3 Nd8 12. d4 b6 13. Rae1 Rb8 14. Qc2 Bb7 15. Nh4 g6 16. Re2 Ne6 17. Nhf3 {½-½ (35) Sirotine,K (2326)-Ponkratov,P (2407) Dagomys 2004}) 11... Be6 {[%emt 0:03:36]} 12. Nh4 {[%emt 0:02:10]} Bxc4 {[%emt 0:03:26]} 13. Nf5 {[%emt 0:00:27]} Qe6 {[%emt 0:02:34]} 14. Nxc4 {[%emt 0:02:25]} Ne7 {[%emt 0:05:27]} 15. Qg3 {[%emt 0:04:17][%csl Gf5][%cal Rg3g7] [#]} Nxf5 {[%emt 0:11:50]} 16. exf5 {[%emt 0:00:23]} Qd5 {[%emt 0:06:15]} 17. e4 $1 {[%emt 0:00:04]} Qc5+ {[%emt 0:00:48]} ({Don't play} 17... Nxe4 18. dxe4 Qxc4 19. f6 $16) 18. Kh1 {[%emt 0:04:05]} Rfe8 {[%emt 0:01:31]} (18... Nxe4 $2 19. dxe4 f6 20. Qd3 $18) 19. Qe3 {[%emt 0:04:04]} Qc6 {[%emt 0:05:42]} 20. Nd2 {[%emt 0:26:32]} d5 {[%emt 0:01:45]} 21. g4 {[%emt 0:05:37]} (21. exd5 $11 {keeps the balance.} Nxd5 22. Qf3) 21... dxe4 {[%emt 0:03:49]} ({Black should play} 21... Nxg4 $17 22. Qg5 Qh6 23. Qxg4 Qxd2) 22. Nxe4 $15 {[%emt 0:01:07]} Nd5 {[%emt 0:02:38]} ({Reject} 22... Nxg4 23. Qg5 Nf6 24. Rg1 $11) 23. Qg3 {[%emt 0:08:33]} Rad8 {[%emt 0:07:20] ...Nf4 is the strong threat.} 24. Rae1 {[%emt 0:03:09]} f6 {[%emt 0:07:19]} 25. g5 {[%emt 0:00:23]} fxg5 {[%emt 0:00:52]} 26. Qxg5 {[%emt 0:00:53]} Nf6 $2 {[%emt 0:00:19][%mdl 8192] This move loses the game for Black.} (26... Kh8 $11 {and Black has nothing to worry.}) 27. Rg1 $1 $18 {[%emt 0:00:36][%csl Gg1,LRf6,LRg7][%cal Rg5g7] [#] White is clearly winning.} Re7 {[%emt 0:03:37]} 28. Qxf6 $1 {[%emt 0:00:25]} Qxf6 {[%emt 0:00:43]} 29. Nxf6+ {[%emt 0:00:06]} Kf7 {[%emt 0:00:03]} 30. Ng4 {[%emt 0:01:09] Weighted Error Value: White=0.16 (very precise) /Black=0.40} 1-0

[Event "Olomouc Chess Summer-IM 2022"]
[Site "Olomouc"]
[Date "2022.08.14"]
[Round "3.11"]
[White "Paseka, Matyas"]
[Black "Obsivac, Josef"]
[Result "1/2-1/2"]
[ECO "B43"]
[WhiteElo "2218"]
[BlackElo "2272"]
[Annotator "TA"]
[PlyCount "137"]
[EventDate "2022.08.10"]
[EventCountry "CZE"]
[SourceTitle "playchess.com"]
[Source "ChessBase"]
[SourceQuality "1"]
[TimeControl "40/5400+30:1800+30"]

{[%evp 13,137,3,20,19,26,15,37,12,50,52,52,56,131,139,153,148,153,120,159,147,148,145,152,120,92,41,141,185,181,83,91,32,39,31,101,101,106,93,90,-139,8,0,0,0,63,69,63,1,111,89,89,47,60,-31,355,306,359,356,311,322,370,356,601,285,275,108,562,562,562,539,487,69,69,69,69,69,69,69,69,69,69,69,69,69,69,69,69,69,69,69,69,69,69,69,69,69,91,69,69,69,69,69,304,304,304,10,10,8,8,8,8,8,8,8,8,8,8,8,8,8,8,0,0,0,0,0]} 1. e4 {[%emt 0:00:03]} c5 {[%emt 0:00:06]} 2. Nf3 {[%emt 0:00:08]} e6 {[%emt 0:00:12]} 3. d4 {[%emt 0:00:11]} cxd4 {[%emt 0:00:08]} 4. Nxd4 {[%emt 0:00:07]} a6 {[%emt 0:00:19]} 5. Nc3 {[%emt 0:00:47]} b5 {[%emt 0:00:23]} 6. a3 {[%emt 0:03:43]} Bb7 {[%emt 0:01:02]} 7. Bd3 {[%emt 0:00:53]} Qb6 {[%emt 0:06:30]} 8. Nb3 {[%emt 0:01:04] B43: Sicilian: Kan Variation: 5 Nc3.} Qc7 {[%emt 0:00:49]} 9. Qe2 {[%emt 0:03:23]} d6 {[%emt 0:01:44]} 10. Bd2 {[%emt 0:01:46] [#] White is slightly better.} Nd7 $146 {[%emt 0:00:48]} ({Predecessor:} 10... Nf6 11. O-O Be7 12. f4 Nbd7 13. Rae1 e5 14. Kh1 O-O 15. Nd1 Rfe8 16. Na5 Bc8 {1-0 (36) Ochirsukh,B (1804)-Marasinghe,H (1832) Ulaanbaatar 2016}) 11. a4 {[%emt 0:11:08]} b4 {[%emt 0:02:23]} 12. Na2 {[%emt 0:00:12]} a5 {[%emt 0:00:58]} (12... Ngf6 $14) 13. c3 $16 {[%emt 0:00:14]} Ngf6 {[%emt 0:45:03]} 14. cxb4 {[%emt 0:08:00]} axb4 {[%emt 0:00:02]} 15. Nxb4 {[%emt 0:00:22]} Be7 {[%emt 0:02:14]} 16. O-O {[%emt 0:11:10]} O-O {[%emt 0:00:05]} 17. Rfc1 {[%emt 0:03:32]} Nc5 {[%emt 0:08:44]} 18. e5 {[%emt 0:14:22]} Nfd7 {[%emt 0:05:13]} 19. Bf4 {[%emt 0:07:29]} (19. Qh5 $6 g6 20. Qe2 Qb8 21. Nxc5 dxc5 $11) ({Better is} 19. Bb5 $16) 19... Qb6 {[%emt 0:09:15]} (19... dxe5 $14 20. Be3 (20. Qh5 $2 g6 $19) 20... Rac8) 20. exd6 $1 {[%emt 0:03:07]} Nxd3 {[%emt 0:00:45]} 21. Qxd3 {[%emt 0:04:31]} ({Not} 21. dxe7 Nxc1 22. exf8=Q+ (22. exf8=R+ Nxf8 23. Bxc1 Qxb4 $11) 22... Nxf8 23. Bxc1 (23. Rxc1 Qxb4 24. Qe3 Rxa4 $11) 23... Qxb4 $11) (21. Nxd3 $18 {has better winning chances.} Bxd6 22. Bxd6 Qxd6 23. Nbc5) 21... Bf6 {[%emt 0:01:46]} 22. Rc4 {[%emt 0:08:16]} (22. Bd2 $1 $16) 22... Bxb2 $14 {[%emt 0:01:58]} 23. Ra2 {[%emt 0:09:08] Strongly threatening a5.} Ne5 {[%emt 0:00:56]} (23... Be5 $1 $14) 24. Bxe5 $16 {[%emt 0:01:00]} Bxe5 {[%emt 0:00:03] A strong pair of Bishops.} 25. d7 $36 {[%emt 0:01:56][%mdl 2048] White has strong initiative.} (25. Rh4 f5 26. a5 (26. d7 $2 Be4 $19) 26... Qxd6 27. Qxd6 Bxd6 $15) 25... Rfd8 {[%emt 0:01:47]} 26. Rh4 $2 {[%emt 0:05:40] [#]} (26. a5 $16 {stays on course.} Qb5 27. Nc5) 26... g6 {[%emt 0:01:56]} (26... Rxd7 $1 $17 {[%mdl 512]} 27. Qxd7 Rd8) 27. a5 $11 {[%emt 0:00:05] Chess con chili.} Qc7 {[%emt 0:01:11]} 28. Rd2 {[%emt 0:00:12]} Bf6 {[%emt 0:03:41]} ({Black should try} 28... Rab8 $1 $11) 29. Rc4 $14 {[%emt 0:00:32]} Qe5 {[%emt 0:00:03][%cal Od8d7]} 30. h3 {[%emt 0:01:16] Active counter play!} ({White should play} 30. Rd1 $14) 30... Qe1+ {[%emt 0:02:56]} (30... Qb5 $1 $11) 31. Kh2 {[%emt 0:00:12] And now Nc5 would win.} Qe5+ {[%emt 0:00:28]} 32. f4 {[%emt 0:00:16]} Qb5 {[%emt 0:00:27]} 33. Nc5 {[%emt 0:01:30]} (33. Qc2 $1 $14) 33... Bd5 $2 {[%emt 0:02:09][%mdl 8192]} (33... Rxa5 $15 34. Rdc2 (34. Nxb7 Qxb7 35. Qd6 Ra7 $17) 34... Ba8) 34. Nxd5 $18 {[%emt 0:00:11]} exd5 {[%emt 0:00:01]} 35. Qxd5 {[%emt 0:00:11]} Rxa5 {[%emt 0:00:24]} 36. Qe4 {[%emt 0:01:09] Inhibits Be7.} Ra7 {[%emt 0:01:02] Inhibits Nb7.} 37. Rd6 {[%emt 0:00:25] Against Qb6} Qb2 {[%emt 0:00:44]} (37... Bg7 38. Rd1 Qb6 39. Qe8+ Bf8) 38. Qe8+ {[%emt 0:00:30]} (38. Nd3 $142 Qa1 39. Rcc6) 38... Kg7 {[%emt 0:00:02]} 39. Ne4 $2 {[%emt 0:00:37]} (39. Qe1 $18) 39... Raxd7 $2 {[%emt 0:00:54][%mdl 8192]} 40. Qxd7 {[%emt 0:00:37]} Rxd7 {[%emt 0:00:08]} 41. Rxd7 {[%emt 0:30:03]} Bh4 {[%emt 0:04:17] [#]} 42. Nd2 {[%emt 0:00:00] Inhibits Qb3.} (42. Nd6 $1 $18 Kf6 43. Re4) 42... Bf2 {[%emt 0:10:36]} 43. Nf3 {[%emt 0:00:00]} Qb3 {[%emt 0:07:10]} 44. Rcc7 {[%emt 0:00:00]} Be3 {[%emt 0:00:24]} 45. Kg3 {[%emt 0:00:00] Threatens to win with Re7.} Qa2 {[%emt 0:00:38] ...Qf2+ is the strong threat.} 46. Rxf7+ {[%emt 0:00:18]} Qxf7 {[%emt 0:00:03]} 47. Rxf7+ {[%emt 0:00:05]} Kxf7 $14 {[%emt 0:00:07][%mdl 4096] Endgame KB-KN} 48. Ng5+ {[%emt 0:01:16]} Kg7 {[%emt 0:00:14]} 49. Kf3 {[%emt 0:00:07]} Bc1 {[%emt 0:00:21]} 50. Ke4 {[%emt 0:02:02]} Bb2 {[%emt 0:05:21]} 51. Kd5 {[%emt 0:01:17]} Bc1 {[%emt 0:00:58]} 52. g3 {[%emt 0:00:28]} Bd2 {[%emt 0:02:03]} 53. Ke6 {[%emt 0:00:28]} Bc1 {[%emt 0:00:23]} 54. Ne4 {[%emt 0:00:41]} Be3 {[%emt 0:01:11]} 55. Ke7 {[%emt 0:00:37] Black must now prevent Nd6.} Bc1 {[%emt 0:00:15]} 56. Nf2 {[%emt 0:00:33]} Be3 {[%emt 0:00:51]} 57. Nd3 {[%emt 0:00:06] Against Bc5+} Bd4 $2 {[%emt 0:00:29] [#]} (57... h5 $1 $14) 58. g4 $1 $18 {[%emt 0:00:19]} Bc3 {[%emt 0:01:36]} 59. f5 $2 {[%emt 0:00:16]} ({White has to play} 59. Ke6 $18) 59... h5 $11 {[%emt 0:01:06] The position is equal.} 60. Nf4 {[%emt 0:01:13] Threatening mate with Ne6+.} hxg4 {[%emt 0:00:16]} 61. hxg4 {[%emt 0:00:39] White threatens Ne6+ and mate.} gxf5 {[%emt 0:00:28]} 62. gxf5 {[%emt 0:00:08]} Bb2 {[%emt 0:00:51]} 63. Ke6 {[%emt 0:00:34]} Ba1 {[%emt 0:00:27]} 64. Nd5 {[%emt 0:00:37]} Bb2 {[%emt 0:00:14]} 65. Nb6 {[%emt 0:00:14]} Bc3 {[%emt 0:00:20]} 66. Nd7 {[%emt 0:00:27]} Bb2 {[%emt 0:00:25]} 67. Ne5 {[%emt 0:00:14]} Bxe5 {[%emt 0:00:32][%mdl 64] Remove Defender} 68. Kxe5 {[%emt 0:00:04] Intending Ke6 and mate.} Kf7 {[%emt 0:00:05]} 69. Ke4 {Weighted Error Value: White=0.47/Black=0.51} 1/2-1/2